[Event "*** Titled Tuesday Blitz"]
[Site "Chess.com"]
[Date "2020.04.07"]
[Round "5"]
[White "amintabatabaei"]
[Black "Rodalquilar"]
[Result "1-0"]
[WhiteElo "2814"]
[BlackElo "2619"]
[TimeControl "180+1"]
[EndTime "13:55:27 PDT"]
[Termination "amintabatabaei won by resignation"]

1. e4 {[%clk 0:03:00.9]} 1... d5 {[%clk 0:02:59.9]} 2. exd5 {[%clk 0:02:59.8]}
2... Qxd5 {[%clk 0:03:00.8]} 3. Nc3 {[%clk 0:03:00.2]} 3... Qa5 {[%clk
0:03:01.1]} 4. d4 {[%clk 0:02:59.6]} 4... Nf6 {[%clk 0:03:01.5]} 5. Nf3 {[%clk
0:02:58.2]} 5... Bf5 {[%clk 0:03:01.3]} 6. Bc4 {[%clk 0:02:55.7]} 6... e6 {[%clk
0:03:01.6]} 7. Bd2 {[%clk 0:02:48.8]} 7... Bb4 {[%clk 0:03:01.5]} 8. a3 {[%clk
0:02:46.9]} 8... Bxc3 {[%clk 0:03:01.8]} 9. Bxc3 {[%clk 0:02:47.8]} 9... Qb6
{[%clk 0:03:02.7]} 10. O-O {[%clk 0:02:41.7]} 10... Nc6 {[%clk 0:02:57.8]} 11.
Ne5 {[%clk 0:02:21.8]} 11... Nxe5 {[%clk 0:02:50.1]} 12. dxe5 {[%clk 0:02:22.7]}
12... Rd8 {[%clk 0:02:49.3]} 13. exf6 {[%clk 0:02:13.3]} 13... Rxd1 {[%clk
0:02:39.1]} 14. Raxd1 {[%clk 0:02:14.2]} 14... gxf6 {[%clk 0:02:16.7]} 15. Bxf6
{[%clk 0:02:11.4]} 15... O-O {[%clk 0:02:16.9]} 16. Rd2 {[%clk 0:01:49]} 16...
Qc6 {[%clk 0:01:10.6]} 17. Bb3 {[%clk 0:01:43.7]} 17... Be4 {[%clk 0:01:09.4]}
18. Rd4 {[%clk 0:00:51.5]} 18... b5 {[%clk 0:00:28.8]} 19. Re1 {[%clk
0:00:42.3]} 19... Bg6 {[%clk 0:00:25.6]} 20. Red1 {[%clk 0:00:41.6]} 20... h6
{[%clk 0:00:21.6]} 21. Rd8 {[%clk 0:00:40.3]} 21... Bxc2 {[%clk 0:00:07.6]} 22.
Rxf8+ {[%clk 0:00:38]} 22... Kh7 {[%clk 0:00:08.5]} 23. Rc1 {[%clk 0:00:36.7]}
23... Qd6 {[%clk 0:00:07.1]} 24. Bxc2+ {[%clk 0:00:36.1]} 1-0

[Event "*** Titled Tuesday Blitz"]
[Site "Chess.com"]
[Date "2020.04.07"]
[Round "5"]
[White "Rakesh"]
[Black "Superfelix"]
[Result "0-1"]
[WhiteElo "2328"]
[BlackElo "2496"]
[TimeControl "180+1"]
[EndTime "13:55:28 PDT"]
[Termination "Superfelix won by resignation"]

1. e4 {[%clk 0:03:00.9]} 1... c6 {[%clk 0:02:55.3]} 2. c4 {[%clk 0:03:00.5]}
2... g6 {[%clk 0:02:55.7]} 3. Nc3 {[%clk 0:02:59.9]} 3... Bg7 {[%clk 0:02:56.2]}
4. d4 {[%clk 0:02:59.8]} 4... d6 {[%clk 0:02:55.3]} 5. Nf3 {[%clk 0:02:59.5]}
5... a6 {[%clk 0:02:55.3]} 6. Be3 {[%clk 0:03:00]} 6... b5 {[%clk 0:02:54.9]} 7.
Qd2 {[%clk 0:03:00.9]} 7... Nd7 {[%clk 0:02:53.7]} 8. Bd3 {[%clk 0:03:00.8]}
8... e5 {[%clk 0:02:47.1]} 9. O-O {[%clk 0:02:58.8]} 9... Ngf6 {[%clk
0:02:43.3]} 10. h3 {[%clk 0:02:58.4]} 10... O-O {[%clk 0:02:42.6]} 11. Rad1
{[%clk 0:02:49.4]} 11... Bb7 {[%clk 0:02:42.4]} 12. b3 {[%clk 0:02:48.5]} 12...
Qe7 {[%clk 0:02:39.7]} 13. Rfe1 {[%clk 0:02:48.6]} 13... Nh5 {[%clk 0:02:36.2]}
14. Bg5 {[%clk 0:02:47.3]} 14... f6 {[%clk 0:02:34.4]} 15. Bh6 {[%clk
0:02:46.9]} 15... Bxh6 {[%clk 0:02:30.2]} 16. Qxh6 {[%clk 0:02:47.8]} 16... Nf4
{[%clk 0:02:29.9]} 17. Bf1 {[%clk 0:02:48.2]} 17... Rf7 {[%clk 0:02:27.9]} 18.
g3 {[%clk 0:02:44.6]} 18... Ne6 {[%clk 0:02:24.2]} 19. h4 {[%clk 0:02:42.3]}
19... b4 {[%clk 0:02:16.9]} 20. Na4 {[%clk 0:02:36.3]} 20... c5 {[%clk
0:02:14.7]} 21. dxe5 {[%clk 0:02:33.4]} 21... Nxe5 {[%clk 0:02:12.6]} 22. Nxe5
{[%clk 0:02:32.3]} 22... fxe5 {[%clk 0:02:13.5]} 23. Nb6 {[%clk 0:02:28.7]}
23... Raf8 {[%clk 0:02:09.1]} 24. Rd2 {[%clk 0:02:21.5]} 24... Nd4 {[%clk
0:02:08.6]} 25. Bg2 {[%clk 0:02:12.8]} 25... Qf6 {[%clk 0:02:07.3]} 26. Re3
{[%clk 0:02:09.2]} 26... Bc6 {[%clk 0:01:56.5]} 27. h5 {[%clk 0:02:08.4]} 27...
Rg7 {[%clk 0:01:47.4]} 28. Nd5 {[%clk 0:01:55.7]} 28... Bxd5 {[%clk 0:01:46.2]}
29. exd5 {[%clk 0:01:56.6]} 29... g5 {[%clk 0:01:42.7]} 30. Qxf6 {[%clk
0:01:25.1]} 30... Rxf6 {[%clk 0:01:43.6]} 31. Be4 {[%clk 0:01:24.8]} 31... a5
{[%clk 0:01:34.3]} 32. g4 {[%clk 0:01:23.7]} 32... a4 {[%clk 0:01:28.9]} 33. Kg2
{[%clk 0:01:17.8]} 33... Ra7 {[%clk 0:01:26.6]} 34. Kg3 {[%clk 0:01:10]} 34...
h6 {[%clk 0:01:24.8]} 35. Bg6 {[%clk 0:01:05.8]} 35... Rf4 {[%clk 0:01:23.6]}
36. Be4 {[%clk 0:01:03.2]} 36... Kg7 {[%clk 0:01:20.6]} 37. f3 {[%clk
0:01:02.7]} 37... Rf8 {[%clk 0:01:18.9]} 38. Rf2 {[%clk 0:00:56.6]} 38... Rfa8
{[%clk 0:01:15.9]} 39. Rb2 {[%clk 0:00:56.2]} 39... axb3 {[%clk 0:01:15.1]} 40.
axb3 {[%clk 0:00:57.1]} 40... Ra2 {[%clk 0:01:15]} 41. Rf2 {[%clk 0:00:51.9]}
41... Rxf2 {[%clk 0:01:12]} 42. Kxf2 {[%clk 0:00:52.8]} 42... Ra2+ {[%clk
0:01:11.9]} 43. Kf1 {[%clk 0:00:51.5]} 43... Rb2 {[%clk 0:01:11.7]} 44. Re1
{[%clk 0:00:51.3]} 44... Nxb3 {[%clk 0:01:07.3]} 45. f4 {[%clk 0:00:50.6]} 45...
Nd2+ {[%clk 0:01:05.7]} 46. Kg1 {[%clk 0:00:50.2]} 46... Nxe4 {[%clk 0:01:05.3]}
47. Re2 {[%clk 0:00:50.8]} 47... Rxe2 {[%clk 0:01:03.5]} 0-1

[Event "*** Titled Tuesday Blitz"]
[Site "Chess.com"]
[Date "2020.04.07"]
[Round "5"]
[White "MrrRefrao"]
[Black "gixfantastix"]
[Result "1-0"]
[WhiteElo "2413"]
[BlackElo "2096"]
[TimeControl "180+1"]
[EndTime "13:55:28 PDT"]
[Termination "MrrRefrao won on time"]

1. e4 {[%clk 0:02:59.3]} 1... Nf6 {[%clk 0:02:59.2]} 2. e5 {[%clk 0:02:59.2]}
2... Nd5 {[%clk 0:02:59.3]} 3. d4 {[%clk 0:03:00.1]} 3... d6 {[%clk 0:02:58.9]}
4. Nf3 {[%clk 0:03:01]} 4... Bg4 {[%clk 0:02:58.1]} 5. Be2 {[%clk 0:02:59.5]}
5... e6 {[%clk 0:02:58.1]} 6. c4 {[%clk 0:02:58.5]} 6... Nb6 {[%clk 0:02:57.5]}
7. exd6 {[%clk 0:02:59.1]} 7... cxd6 {[%clk 0:02:56.5]} 8. h3 {[%clk 0:02:59.7]}
8... Bh5 {[%clk 0:02:56]} 9. Nc3 {[%clk 0:03:00.2]} 9... Be7 {[%clk 0:02:41.9]}
10. d5 {[%clk 0:03:00.2]} 10... e5 {[%clk 0:02:31.7]} 11. g4 {[%clk 0:03:00.4]}
11... Bg6 {[%clk 0:02:30.7]} 12. h4 {[%clk 0:03:01.3]} 12... h5 {[%clk
0:02:27.7]} 13. g5 {[%clk 0:03:01.5]} 13... N8d7 {[%clk 0:02:14.8]} 14. Be3
{[%clk 0:02:56.4]} 14... O-O {[%clk 0:01:42.3]} 15. Nd2 {[%clk 0:02:54.5]} 15...
Rc8 {[%clk 0:01:36.6]} 16. b3 {[%clk 0:02:39.6]} 16... Nc5 {[%clk 0:01:19.9]}
17. Bxh5 {[%clk 0:02:27.7]} 17... Nd3+ {[%clk 0:01:18.7]} 18. Kf1 {[%clk
0:02:23.1]} 18... Nf4 {[%clk 0:00:49.2]} 19. Bxf4 {[%clk 0:02:18.4]} 19... exf4
{[%clk 0:00:48.2]} 20. Bxg6 {[%clk 0:02:18.3]} 20... fxg6 {[%clk 0:00:47.6]} 21.
Nf3 {[%clk 0:02:13.4]} 21... Nd7 {[%clk 0:00:11.8]} 22. Nd4 {[%clk 0:02:09.4]}
22... Ne5 {[%clk 0:00:10.2]} 23. Ne6 {[%clk 0:02:07.5]} 23... Qd7 {[%clk
0:00:10.3]} 24. h5 {[%clk 0:01:51.6]} 24... Rf5 {[%clk 0:00:09.7]} 25. Ne4
{[%clk 0:01:45.1]} 25... f3 {[%clk 0:00:07.4]} 26. hxg6 {[%clk 0:01:39.3]} 26...
Qe8 {[%clk 0:00:04.9]} 27. Ng3 {[%clk 0:01:25]} 27... Qxg6 {[%clk 0:00:04.2]}
28. Nxf5 {[%clk 0:01:22.3]} 28... Qxf5 {[%clk 0:00:05.1]} 29. Qd2 {[%clk
0:01:20.8]} 29... Bxg5 {[%clk 0:00:04.6]} 30. Qxg5 {[%clk 0:01:18.6]} 30... Qd3+
{[%clk 0:00:02]} 31. Kg1 {[%clk 0:01:18.7]} 1-0

[Event "*** Titled Tuesday Blitz"]
[Site "Chess.com"]
[Date "2020.04.07"]
[Round "5"]
[White "fpawn"]
[Black "PawnEatingZombie"]
[Result "1-0"]
[WhiteElo "2296"]
[BlackElo "2130"]
[TimeControl "180+1"]
[EndTime "13:55:29 PDT"]
[Termination "fpawn won by resignation"]

1. e4 {[%clk 0:03:00.6]} 1... c6 {[%clk 0:02:09]} 2. d4 {[%clk 0:02:59.1]} 2...
d5 {[%clk 0:02:07.7]} 3. Nc3 {[%clk 0:02:59.6]} 3... dxe4 {[%clk 0:02:06]} 4.
Nxe4 {[%clk 0:02:59.7]} 4... Bf5 {[%clk 0:02:06.5]} 5. Ng3 {[%clk 0:02:59.2]}
5... Bg6 {[%clk 0:02:07.1]} 6. h4 {[%clk 0:02:59.7]} 6... h6 {[%clk 0:02:06.3]}
7. h5 {[%clk 0:03:00.2]} 7... Bh7 {[%clk 0:02:05.8]} 8. Nf3 {[%clk 0:03:00.8]}
8... Nd7 {[%clk 0:02:05.3]} 9. Bd3 {[%clk 0:03:01.4]} 9... Bxd3 {[%clk 0:02:04]}
10. Qxd3 {[%clk 0:03:02.3]} 10... e6 {[%clk 0:02:04.3]} 11. Bd2 {[%clk
0:03:02.4]} 11... Ngf6 {[%clk 0:02:03.4]} 12. O-O-O {[%clk 0:03:02.6]} 12... Be7
{[%clk 0:02:03.8]} 13. Kb1 {[%clk 0:03:02.8]} 13... Qb6 {[%clk 0:02:03.5]} 14.
Ne4 {[%clk 0:02:55.9]} 14... Rd8 {[%clk 0:02:02.3]} 15. Nxf6+ {[%clk 0:02:36.8]}
15... Nxf6 {[%clk 0:02:01.4]} 16. Qe2 {[%clk 0:02:36.7]} 16... c5 {[%clk
0:01:49.6]} 17. Be3 {[%clk 0:02:33]} 17... cxd4 {[%clk 0:01:46.5]} 18. Bxd4
{[%clk 0:02:28.2]} 18... Qa5 {[%clk 0:01:29.7]} 19. Bc3 {[%clk 0:02:23]} 19...
Qb6 {[%clk 0:01:11.2]} 20. Rxd8+ {[%clk 0:02:20]} 20... Bxd8 {[%clk 0:01:08.9]}
21. Ne5 {[%clk 0:02:06.4]} 21... O-O {[%clk 0:01:04.6]} 22. g4 {[%clk
0:02:02.8]} 22... Nd5 {[%clk 0:01:00.5]} 23. Bd2 {[%clk 0:02:01.6]} 23... Qc7
{[%clk 0:00:40.2]} 24. f4 {[%clk 0:01:52.5]} 24... Bf6 {[%clk 0:00:37.9]} 25. c4
{[%clk 0:01:46.6]} 25... Nb6 {[%clk 0:00:32.9]} 26. b3 {[%clk 0:01:46.5]} 26...
Bxe5 {[%clk 0:00:30.7]} 27. fxe5 {[%clk 0:01:43.7]} 27... Nd7 {[%clk 0:00:26.9]}
28. Bc3 {[%clk 0:01:40.3]} 28... Nc5 {[%clk 0:00:12.3]} 29. Rg1 {[%clk
0:01:33.1]} 29... Qc6 {[%clk 0:00:11.6]} 30. g5 {[%clk 0:01:31.4]} 30... hxg5
{[%clk 0:00:11.2]} 31. Rxg5 {[%clk 0:01:28.6]} 31... Qe4+ {[%clk 0:00:11.1]} 32.
Qc2 {[%clk 0:01:20.7]} 32... Qxc2+ {[%clk 0:00:10.2]} 33. Kxc2 {[%clk
0:01:20.8]} 33... Ne4 {[%clk 0:00:10.7]} 34. Rg4 {[%clk 0:01:10.7]} 34... Nxc3
{[%clk 0:00:10.5]} 35. Kxc3 {[%clk 0:01:10.9]} 35... Rd8 {[%clk 0:00:10.1]} 36.
Rd4 {[%clk 0:01:08.5]} 36... Rxd4 {[%clk 0:00:09]} 37. Kxd4 {[%clk 0:01:09.4]}
37... Kh7 {[%clk 0:00:09.1]} 38. c5 {[%clk 0:01:08.5]} 38... Kh6 {[%clk
0:00:09.1]} 39. b4 {[%clk 0:01:09]} 39... Kxh5 {[%clk 0:00:09.4]} 40. b5 {[%clk
0:01:09.6]} 40... g5 {[%clk 0:00:09.1]} 41. c6 {[%clk 0:01:08.4]} 41... bxc6
{[%clk 0:00:09.2]} 42. bxc6 {[%clk 0:01:08.6]} 42... g4 {[%clk 0:00:10.1]} 43.
c7 {[%clk 0:01:07.4]} 43... g3 {[%clk 0:00:10.6]} 44. Ke3 {[%clk 0:01:07.6]}
44... Kh4 {[%clk 0:00:09.3]} 45. c8=Q {[%clk 0:01:06.9]} 45... g2 {[%clk
0:00:09.4]} 46. Kf2 {[%clk 0:01:06.3]} 1-0

[Event "*** Titled Tuesday Blitz"]
[Site "Chess.com"]
[Date "2020.04.07"]
[Round "5"]
[White "IAgrest"]
[Black "GGX0X0"]
[Result "1-0"]
[WhiteElo "2190"]
[BlackElo "2312"]
[TimeControl "180+1"]
[EndTime "13:55:35 PDT"]
[Termination "IAgrest won by resignation"]

1. e4 {[%clk 0:02:54.9]} 1... c6 {[%clk 0:02:59.4]} 2. d4 {[%clk 0:02:54.2]}
2... d5 {[%clk 0:02:56]} 3. f3 {[%clk 0:02:53.7]} 3... e6 {[%clk 0:02:53.8]} 4.
Nc3 {[%clk 0:02:52.7]} 4... Bb4 {[%clk 0:02:50.6]} 5. Bf4 {[%clk 0:02:50.6]}
5... Nf6 {[%clk 0:02:48.8]} 6. Qd3 {[%clk 0:02:50.1]} 6... b6 {[%clk 0:02:33]}
7. Ne2 {[%clk 0:02:49.6]} 7... Ba6 {[%clk 0:02:31.6]} 8. Qe3 {[%clk 0:02:49.7]}
8... h6 {[%clk 0:02:13.7]} 9. O-O-O {[%clk 0:02:48.3]} 9... Nh5 {[%clk
0:02:07.8]} 10. Kb1 {[%clk 0:02:23.1]} 10... Nxf4 {[%clk 0:02:04.8]} 11. Nxf4
{[%clk 0:02:21.1]} 11... Bxf1 {[%clk 0:01:52.2]} 12. Rhxf1 {[%clk 0:02:22]}
12... O-O {[%clk 0:01:46.4]} 13. g4 {[%clk 0:02:19.7]} 13... Qg5 {[%clk
0:01:41.6]} 14. Nce2 {[%clk 0:02:14.1]} 14... dxe4 {[%clk 0:01:37.9]} 15. fxe4
{[%clk 0:02:06.1]} 15... a5 {[%clk 0:01:21]} 16. Qg3 {[%clk 0:02:02.6]} 16...
Qb5 {[%clk 0:01:18.9]} 17. h4 {[%clk 0:01:44.2]} 17... Be7 {[%clk 0:01:18.2]}
18. Rf2 {[%clk 0:01:26.8]} 18... c5 {[%clk 0:01:09.6]} 19. g5 {[%clk 0:01:17.1]}
19... hxg5 {[%clk 0:01:07.2]} 20. hxg5 {[%clk 0:01:17.1]} 20... cxd4 {[%clk
0:01:06.8]} 21. g6 {[%clk 0:01:12.7]} 21... Qg5 {[%clk 0:00:35.5]} 22. Qh3
{[%clk 0:01:12]} 22... e5 {[%clk 0:00:30.6]} 23. Rg2 {[%clk 0:00:31.1]} 23...
Qh6 {[%clk 0:00:20.7]} 24. gxf7+ {[%clk 0:00:30.3]} 24... Kh7 {[%clk 0:00:19.2]}
25. Qf5+ {[%clk 0:00:29.6]} 25... Kh8 {[%clk 0:00:19.3]} 26. Ng6+ {[%clk
0:00:27]} 26... Kh7 {[%clk 0:00:16.3]} 27. Nxf8+ {[%clk 0:00:26.8]} 27... Kh8
{[%clk 0:00:16.5]} 28. Ng6+ {[%clk 0:00:25.8]} 28... Kh7 {[%clk 0:00:17]} 29.
Nxe7+ {[%clk 0:00:25.2]} 1-0

[Event "*** Titled Tuesday Blitz"]
[Site "Chess.com"]
[Date "2020.04.07"]
[Round "5"]
[White "2165149677570"]
[Black "volcanoexplorer"]
[Result "0-1"]
[WhiteElo "2370"]
[BlackElo "2543"]
[TimeControl "180+1"]
[EndTime "13:55:36 PDT"]
[Termination "volcanoexplorer won by resignation"]

1. e4 {[%clk 0:03:00.9]} 1... e5 {[%clk 0:03:00.1]} 2. Nf3 {[%clk 0:03:01.3]}
2... Nc6 {[%clk 0:03:00.5]} 3. Bb5 {[%clk 0:03:01.9]} 3... a6 {[%clk 0:03:00.6]}
4. Ba4 {[%clk 0:03:02.6]} 4... Nf6 {[%clk 0:03:01]} 5. O-O {[%clk 0:03:03.2]}
5... Be7 {[%clk 0:03:01.3]} 6. Re1 {[%clk 0:03:03.9]} 6... b5 {[%clk 0:03:01.8]}
7. Bb3 {[%clk 0:03:04.1]} 7... O-O {[%clk 0:03:02.5]} 8. d4 {[%clk 0:03:04.7]}
8... d6 {[%clk 0:03:01.3]} 9. c3 {[%clk 0:03:03.7]} 9... Bg4 {[%clk 0:02:54.7]}
10. Be3 {[%clk 0:03:03.8]} 10... exd4 {[%clk 0:02:54.2]} 11. cxd4 {[%clk
0:03:04.5]} 11... Na5 {[%clk 0:02:54.7]} 12. Bc2 {[%clk 0:03:05]} 12... c5
{[%clk 0:02:55.3]} 13. Nbd2 {[%clk 0:03:03.8]} 13... cxd4 {[%clk 0:02:52.7]} 14.
Bxd4 {[%clk 0:03:04]} 14... Rc8 {[%clk 0:02:52.6]} 15. Bd3 {[%clk 0:02:57]}
15... Nc6 {[%clk 0:02:46.8]} 16. Be3 {[%clk 0:02:51.5]} 16... d5 {[%clk
0:02:37.7]} 17. h3 {[%clk 0:02:47.5]} 17... dxe4 {[%clk 0:02:22.9]} 18. Nxe4
{[%clk 0:02:47.5]} 18... Bxf3 {[%clk 0:02:17.1]} 19. gxf3 {[%clk 0:02:38.1]}
19... Nd5 {[%clk 0:02:17.4]} 20. f4 {[%clk 0:02:23.1]} 20... Bf6 {[%clk
0:01:56.8]} 21. Nxf6+ {[%clk 0:02:20.9]} 21... Qxf6 {[%clk 0:01:57.7]} 22. Qh5
{[%clk 0:01:59.9]} 22... Qh6 {[%clk 0:00:51.9]} 23. Qxd5 {[%clk 0:01:57.7]}
23... Rfd8 {[%clk 0:00:48.6]} 24. Qe4 {[%clk 0:01:56.5]} 24... Qxh3 {[%clk
0:00:37.1]} 25. Bf1 {[%clk 0:01:46.6]} 25... Qg4+ {[%clk 0:00:34]} 26. Bg2
{[%clk 0:01:47]} 26... Rd6 {[%clk 0:00:32.3]} 27. f5 {[%clk 0:01:43.2]} 27...
Qh5 {[%clk 0:00:28.4]} 28. Rad1 {[%clk 0:01:38.1]} 28... Rxd1 {[%clk 0:00:26.5]}
29. Rxd1 {[%clk 0:01:39]} 29... Qxd1+ {[%clk 0:00:26.4]} 30. Kh2 {[%clk
0:01:36.1]} 30... Qh5+ {[%clk 0:00:23.2]} 31. Kg3 {[%clk 0:01:24.2]} 31... g6
{[%clk 0:00:23.3]} 32. f6 {[%clk 0:01:15.9]} 32... Qf5 {[%clk 0:00:19.7]} 33.
Qxf5 {[%clk 0:01:10.8]} 33... gxf5 {[%clk 0:00:20.6]} 34. Kf4 {[%clk 0:00:51.2]}
34... Nb4 {[%clk 0:00:20.9]} 35. a3 {[%clk 0:00:50.3]} 35... Nd3+ {[%clk
0:00:21]} 36. Kxf5 {[%clk 0:00:49.4]} 36... Nxb2 {[%clk 0:00:21.9]} 37. Bb7
{[%clk 0:00:49.2]} 37... Rd8 {[%clk 0:00:18.2]} 38. Bxa6 {[%clk 0:00:48.3]}
38... Ra8 {[%clk 0:00:18.2]} 39. Bxb5 {[%clk 0:00:47.2]} 39... Ra5 {[%clk
0:00:18.4]} 40. a4 {[%clk 0:00:44]} 40... Nxa4 {[%clk 0:00:18.7]} 0-1

[Event "*** Titled Tuesday Blitz"]
[Site "Chess.com"]
[Date "2020.04.07"]
[Round "5"]
[White "Budisavljevic"]
[Black "PenguinPacks"]
[Result "0-1"]
[WhiteElo "2436"]
[BlackElo "2400"]
[TimeControl "180+1"]
[EndTime "13:55:37 PDT"]
[Termination "PenguinPacks won by resignation"]

1. d4 {[%clk 0:03:00.9]} 1... Nf6 {[%clk 0:02:58.3]} 2. Nf3 {[%clk 0:03:00.3]}
2... c5 {[%clk 0:02:57.1]} 3. d5 {[%clk 0:02:59.6]} 3... e6 {[%clk 0:02:57]} 4.
Nc3 {[%clk 0:02:59.2]} 4... a6 {[%clk 0:02:54.5]} 5. a4 {[%clk 0:02:49.8]} 5...
b6 {[%clk 0:02:53.3]} 6. e4 {[%clk 0:02:48.5]} 6... Bb7 {[%clk 0:02:52.3]} 7.
Bc4 {[%clk 0:02:46]} 7... Qc7 {[%clk 0:02:46.6]} 8. e5 {[%clk 0:02:19.1]} 8...
Nxd5 {[%clk 0:02:33.8]} 9. Nxd5 {[%clk 0:02:11.2]} 9... Bxd5 {[%clk 0:02:31.6]}
10. Bxd5 {[%clk 0:02:12.1]} 10... exd5 {[%clk 0:02:32.1]} 11. Qxd5 {[%clk
0:02:12.1]} 11... Nc6 {[%clk 0:02:30.3]} 12. Bf4 {[%clk 0:02:05]} 12... Be7
{[%clk 0:02:29.3]} 13. e6 {[%clk 0:01:43.4]} 13... dxe6 {[%clk 0:02:16.6]} 14.
Qxe6 {[%clk 0:00:47.1]} 14... fxe6 {[%clk 0:01:43.3]} 15. Bxc7 {[%clk
0:00:45.8]} 15... Nb4 {[%clk 0:01:43.2]} 16. O-O-O {[%clk 0:00:37.1]} 16... Nd5
{[%clk 0:01:40.9]} 17. Be5 {[%clk 0:00:36.9]} 17... Bf6 {[%clk 0:01:39.8]} 18.
Rhe1 {[%clk 0:00:34.6]} 18... Kf7 {[%clk 0:01:35.8]} 19. c4 {[%clk 0:00:29]}
19... Ne7 {[%clk 0:01:28.4]} 20. Rd7 {[%clk 0:00:22.8]} 20... Rhd8 {[%clk
0:01:20.2]} 21. Red1 {[%clk 0:00:22.1]} 21... Ke8 {[%clk 0:01:11.7]} 22. R7d6
{[%clk 0:00:15.1]} 22... Rxd6 {[%clk 0:00:53.1]} 23. Rxd6 {[%clk 0:00:16]} 23...
Nc8 {[%clk 0:00:49.8]} 24. Rxe6+ {[%clk 0:00:13.6]} 24... Kd7 {[%clk 0:00:47.6]}
25. Bxf6 {[%clk 0:00:10.6]} 25... Kxe6 {[%clk 0:00:47.2]} 26. Bxg7 {[%clk
0:00:11]} 26... Nd6 {[%clk 0:00:44.8]} 27. b3 {[%clk 0:00:06.6]} 27... Rg8
{[%clk 0:00:43.5]} 28. Bc3 {[%clk 0:00:07.5]} 28... Ne4 {[%clk 0:00:39.8]} 29.
a5 {[%clk 0:00:08.4]} 29... Nxc3 {[%clk 0:00:37.6]} 0-1

[Event "*** Titled Tuesday Blitz"]
[Site "Chess.com"]
[Date "2020.04.07"]
[Round "5"]
[White "CookiesAndIceCream"]
[Black "Ovsiannikov_Maxim"]
[Result "0-1"]
[WhiteElo "2348"]
[BlackElo "2224"]
[TimeControl "180+1"]
[EndTime "13:55:38 PDT"]
[Termination "Ovsiannikov_Maxim won by resignation"]

1. e4 {[%clk 0:03:00.9]} 1... e6 {[%clk 0:03:00]} 2. d4 {[%clk 0:02:36.9]} 2...
d5 {[%clk 0:02:59.8]} 3. Nd2 {[%clk 0:02:37]} 3... dxe4 {[%clk 0:02:59.3]} 4.
Nxe4 {[%clk 0:02:36.3]} 4... Bd7 {[%clk 0:03:00.2]} 5. Nf3 {[%clk 0:02:36]} 5...
Bc6 {[%clk 0:03:00]} 6. Bd3 {[%clk 0:02:36.7]} 6... Nd7 {[%clk 0:02:59.4]} 7.
Qe2 {[%clk 0:02:35.5]} 7... Ngf6 {[%clk 0:02:59.9]} 8. Nxf6+ {[%clk 0:02:28.2]}
8... Nxf6 {[%clk 0:02:59.9]} 9. Be3 {[%clk 0:02:28.7]} 9... Be7 {[%clk
0:02:56.8]} 10. O-O-O {[%clk 0:02:27.7]} 10... Be4 {[%clk 0:02:46.3]} 11. Bb5+
{[%clk 0:01:44.5]} 11... c6 {[%clk 0:02:44.9]} 12. Ba4 {[%clk 0:01:44.5]} 12...
b5 {[%clk 0:02:40.8]} 13. Bb3 {[%clk 0:01:44.2]} 13... a5 {[%clk 0:02:40.1]} 14.
a4 {[%clk 0:01:40.8]} 14... Rb8 {[%clk 0:02:24]} 15. Ne5 {[%clk 0:01:37.2]}
15... Qc7 {[%clk 0:02:06.3]} 16. Bf4 {[%clk 0:01:22.8]} 16... Bd6 {[%clk
0:02:02.7]} 17. Rhe1 {[%clk 0:01:09.8]} 17... Bd5 {[%clk 0:02:02.1]} 18. Kb1
{[%clk 0:00:56.5]} 18... O-O {[%clk 0:02:00.4]} 19. Bg3 {[%clk 0:00:46.9]} 19...
Qb7 {[%clk 0:02:00]} 20. axb5 {[%clk 0:00:39.2]} 20... cxb5 {[%clk 0:01:56.5]}
21. Bxd5 {[%clk 0:00:38.9]} 21... Nxd5 {[%clk 0:01:52.9]} 22. Nd3 {[%clk
0:00:37.4]} 22... Qc7 {[%clk 0:01:47.9]} 23. Nc5 {[%clk 0:00:35.5]} 23... Qc6
{[%clk 0:01:37.3]} 24. Bxd6 {[%clk 0:00:34.9]} 24... Qxd6 {[%clk 0:01:37.2]} 25.
h3 {[%clk 0:00:35.2]} 25... b4 {[%clk 0:01:35.5]} 26. Qd3 {[%clk 0:00:34.8]}
26... Rfd8 {[%clk 0:01:29.4]} 27. Re4 {[%clk 0:00:34.5]} 27... Qb6 {[%clk
0:01:29.5]} 28. Rde1 {[%clk 0:00:33.8]} 28... Nc3+ {[%clk 0:01:27.4]} 29. bxc3
{[%clk 0:00:28.3]} 29... bxc3+ {[%clk 0:01:28.3]} 30. Nb3 {[%clk 0:00:28.7]}
30... a4 {[%clk 0:01:28.4]} 31. Qxc3 {[%clk 0:00:29.1]} 31... axb3 {[%clk
0:01:26.1]} 32. cxb3 {[%clk 0:00:30]} 32... Rdc8 {[%clk 0:01:26.1]} 33. Qd3
{[%clk 0:00:23.4]} 33... Qb4 {[%clk 0:01:22.2]} 34. R4e3 {[%clk 0:00:17.9]}
34... Ra8 {[%clk 0:01:17.1]} 35. Qe2 {[%clk 0:00:14.9]} 35... Qa3 {[%clk
0:01:12.3]} 36. Qb2 {[%clk 0:00:14.7]} 36... Qa5 {[%clk 0:01:08.4]} 37. Rc1
{[%clk 0:00:13.4]} 37... Rcb8 {[%clk 0:01:08.4]} 38. Rec3 {[%clk 0:00:13.1]}
38... Qf5+ {[%clk 0:01:07.7]} 39. Qc2 {[%clk 0:00:11.7]} 39... Qg6 {[%clk
0:00:56.9]} 40. Rc8+ {[%clk 0:00:11.4]} 40... Rxc8 {[%clk 0:00:56.5]} 0-1